bitfinex-derivatives/quotes_ETHF0:USTF0_20250531
["timestamp","ask_amount","ask_price","bid_price","bid_amount"]
[1748713586484,4.4492,2535.8,2535.7,2.08104]
[1748713586688,22.4102,2535.8,2535.7,2.08104]
[1748713587591,21.76,2535.8,2535.7,2.08104]
[1748713588193,0.7883,2535.9,2535.8,0.78833]
[1748713588395,22.5513,2535.9,2535.8,0.78833]
[1748713590490,0.7883,2535.9,2535.8,0.78833]
[1748713590691,22.5523,2535.9,2535.8,1.41683]
[1748713592594,23.54216573,2535.9,2535.8,1.41683]
[1748713593595,4.79186573,2535.9,2535.8,1.41683]
[1748713593892,23.54216573,2535.9,2535.8,1.41683]
[1748713594295,23.73926573,2535.9,2535.8,1.41683]
[1748713598500,0.78833,2535.8,2535.7,2.08104]
[1748713598799,23.73929573,2535.9,2535.8,0.78833]
[1748713598993,4.98896573,2535.9,2535.8,0.78833]
[1748713599193,22.7484,2535.9,2535.8,0.78833]
[1748713600901,21.9601,2535.9,2535.8,0.78833]
[1748713601096,3.9991,2535.9,2535.8,0.78833]
[1748713601405,21.9601,2535.9,2535.8,0.78833]
[1748713601598,22.7484,2535.9,2535.8,0.78833]
[1748713602307,0.78833,2535.8,2535.7,2.08104]
[1748713603100,22.74842,2535.9,2535.8,0.78833]
[1748713603504,22.95082356,2535.9,2535.8,0.78833]
[1748713604705,22.95082356,2535.9,2535.8,2.03023]
[1748713605005,23.73912356,2535.9,2535.8,2.03023]
[1748713606407,22.95082356,2535.9,2535.8,2.03023]
[1748713607206,23.73912356,2535.9,2535.8,2.03023]
[1748713608009,22.95082356,2535.9,2535.8,2.03023]
[1748713609210,23.73912356,2535.9,2535.8,2.03023]
[1748713609614,22.95082356,2535.9,2535.8,2.03023]
[1748713611414,23.73912356,2535.9,2535.8,0.78833]
[1748713613916,23.73512356,2535.9,2535.8,0.78833]
[1748713615208,22.94682356,2535.9,2535.8,0.78833]
[1748713618518,23.73512356,2535.9,2535.8,0.78833]
[1748713619517,22.94682356,2535.9,2535.8,0.78833]
[1748713620317,1.18782356,2535.9,2535.8,0.78833]
[1748713620617,22.94682356,2535.9,2535.8,0.78833]
[1748713621821,23.73512356,2535.9,2535.8,0.78833]
[1748713623323,23.73412356,2535.9,2535.8,2.08533]
[1748713623920,22.94582356,2535.9,2535.8,2.08533]
[1748713625920,1.18782356,2535.9,2535.8,2.08533]
[1748713626221,22.94582356,2535.9,2535.8,2.08533]
[1748713627221,0.78836,2535.7,2535.6,2.09929716]
[1748713627417,0.78836,2535.7,2535.6,0.00591716]
[1748713628226,1.46096,2535.7,2535.6,0.00591716]
[1748713628419,0.78849,2535.3,2535.2,0.7885]
[1748713628618,4.58749,2535.3,2535.2,0.7885]
[1748713629124,3.799,2535.3,2535.2,0.7885]
[1748713629327,3.9962,2535.3,2535.2,0.7885]
[1748713629625,4.6294,2535.3,2535.2,0.7885]
[1748713630124,5.41789,2535.3,2535.2,0.7885]
[1748713631025,0.78855,2535.1,2535.0,1.88444478]
[1748713631223,18.74755,2535.1,2535.0,0.00394478]
[1748713631421,18.74755,2535.1,2535.0,0.79252478]
[1748713631620,20.05055,2535.1,2535.0,0.79252478]
[1748713632024,20.05055,2535.1,2535.0,0.00394478]
[1748713632625,20.24616316,2535.1,2535.0,0.00394478]
[1748713632926,20.05055,2535.1,2535.0,0.00394478]
[1748713633828,20.67545,2535.1,2535.0,0.00394478]
[1748713634222,20.67545,2535.1,2535.0,0.79252478]
[1748713634528,20.67545,2535.1,2535.0,0.00394478]
[1748713640832,0.78874,2534.5,2534.4,0.78875]
[1748713641029,4.58674,2534.5,2534.4,0.78875]
[1748713641627,3.798,2534.5,2534.4,0.78875]
[1748713643330,3.798,2534.5,2534.4,2.03295]
[1748713643531,4.58674,2534.5,2534.4,2.03295]
[1748713643733,4.58674,2534.5,2534.4,0.78875]
[1748713645829,3.798,2534.5,2534.4,0.78875]
[1748713646028,3.798,2534.5,2534.4,2.09635]
[1748713648943,21.762,2534.5,2534.4,2.09635]
[1748713651736,3.798,2534.5,2534.4,2.09635]
[1748713651939,21.763,2534.5,2534.4,2.09635]
[1748713652847,21.763,2534.5,2534.4,2.76645]
[1748713653245,22.55174,2534.5,2534.4,2.76645]
[1748713653545,21.763,2534.5,2534.4,2.76645]
[1748713656942,21.9602,2534.5,2534.4,2.76645]
[1748713657545,3.9952,2534.5,2534.4,5.97425]
[1748713657744,0.1972,2534.5,2534.4,5.97425]
[1748713672156,0.1972,2534.5,2534.4,5.30415]
[1748713674661,0.1972,2534.5,2534.4,2.09635]
[1748713676150,0.1972,2534.5,2534.4,5.30415]
[1748713676855,3.798,2534.9,2534.8,0.78864]
[1748713677059,6.14328418,2535.2,2535.1,0.78855]
[1748713677253,3.798,2535.2,2535.1,0.78855]
[1748713677459,3.798,2535.2,2535.1,3.99635]
[1748713677853,3.798,2535.2,2535.1,5.26435]
[1748713680259,3.798,2535.2,2535.1,3.99635]
[1748713680460,5.0546,2535.2,2535.1,3.99635]
[1748713680663,5.0546,2535.2,2535.1,3.2078]
[1748713680858,5.0546,2535.2,2535.1,3.99635]
[1748713681563,5.0546,2535.2,2535.1,0.78855]
[1748713682564,5.0546,2535.2,2534.8,3.2078]
[1748713682766,0.7886,2535.0,2534.7,3.14915056]
[1748713682965,1.3182,2534.9,2534.8,0.78863]
[1748713683266,1.9886,2534.9,2534.8,0.78863]
[1748713688064,5.7856,2534.9,2534.8,0.78863]
[1748713693375,1.3182,2534.9,2534.8,0.78863]
[1748713693578,1.44535,2535.2,2535.1,0.78853]
[1748713693877,0.78856,2535.1,2535.0,0.78856]
[1748713694066,2.14766,2535.1,2535.0,0.78856]
[1748713694266,2.34301693,2535.1,2535.0,0.78856]
[1748713694471,2.14766,2535.1,2535.0,0.78856]
[1748713695778,1.3591,2535.1,2535.0,0.78856]
[1748713696074,2.14765,2535.1,2535.0,0.78856]
[1748713696479,1.3591,2535.1,2535.0,0.78856]
[1748713697282,2.14765,2535.1,2535.0,0.78856]
[1748713699577,0.78861,2535.0,2534.9,0.78859]
[1748713699778,1.2429,2535.0,2534.9,0.78859]
[1748713700078,1.78019687,2535.1,2535.0,0.78858]
[1748713700474,1.9755618,2535.1,2535.0,0.78858]
[1748713700674,1.78019687,2535.1,2535.0,0.78858]
[1748713702691,3.34879687,2535.1,2535.0,0.78858]
[1748713703192,3.54413999,2535.1,2535.0,0.78858]
[1748713703790,3.34879687,2535.1,2535.0,0.78858]
[1748713704092,3.54418651,2535.1,2535.0,0.78858]
[1748713704293,0.78858,2535.0,2534.9,0.78858]
[1748713705498,0.78868,2534.8,2534.6,0.6459]
[1748713705701,1.46028,2534.7,2534.6,0.78871]
[1748713706001,0.78871,2534.6,2534.5,3.99653]
[1748713706803,0.78874,2534.5,2534.4,3.14915056]
[1748713706997,18.74674,2534.5,2534.4,3.14915056]
[1748713707802,18.74674,2534.5,2534.4,3.93790056]
[1748713708800,18.74674,2534.5,2534.4,0.78875]
[1748713711208,18.74674,2534.5,2534.3,2.05457]
[1748713711408,4.58477,2534.4,2534.3,0.78877]
[1748713713905,3.796,2534.4,2534.3,0.78877]
[1748713715610,3.796,2534.4,2534.2,1.3095]
[1748713715611,1.308,2534.7,2534.2,4.61185]
[1748713715811,21.755,2534.6,2534.5,0.78874]
[1748713718317,3.796,2534.6,2534.5,0.78874]
[1748713718614,21.755,2534.6,2534.5,0.78874]
[1748713723220,1.46029,2534.7,2534.6,0.78871]
[1748713723418,23.21429,2534.7,2534.6,0.78871]
[1748713725922,24.20614616,2534.7,2534.6,0.78871]
[1748713726726,24.20514616,2534.7,2534.6,0.78871]
[1748713727329,5.45945616,2534.7,2534.6,0.78871]
[1748713727628,24.20513616,2534.7,2534.6,0.78871]
[1748713727823,23.21328,2534.7,2534.6,0.78871]
[1748713732335,4.58269,2534.7,2534.6,0.78871]
[1748713732534,22.53969,2534.7,2534.6,0.78871]
[1748713733434,22.53969,2534.7,2534.6,1.42001]
[1748713733630,0.99272787,2534.7,2534.6,1.42001]
[1748713733835,18.94972787,2534.7,2534.6,1.42001]
[1748713734836,19.73840787,2534.7,2534.6,1.42001]
[1748713735536,19.93560787,2534.7,2534.6,1.42001]
[1748713736639,19.93460787,2534.7,2534.6,1.42001]
[1748713740337,0.78871,2534.6,2534.5,0.78872]
[1748713740538,2.11251,2534.6,2534.5,0.78872]
[1748713740838,0.78876,2534.5,2534.4,0.78874]
[1748713741044,2.0072,2534.5,2534.2,6.35695056]
[1748713741243,4.58279,2534.4,2534.3,0.7888]
[1748713741541,0.7888,2534.3,2534.2,3.93797056]
[1748713741743,5.90659,2534.4,2534.3,0.7888]
[1748713742041,0.78882,2534.3,2534.2,0.7888]
[1748713742432,2.04882,2534.3,2534.2,0.7888]
[1748713742940,1.26,2534.3,2534.2,0.7888]
[1748713743241,0.78885,2534.2,2534.1,0.78885]
[1748713743443,1.26,2534.3,2534.0,3.14915056]
[1748713743647,7.99452787,2534.4,2534.0,3.14915056]
[1748713743945,7.99452787,2534.4,2533.7,3.92601813]
[1748713743946,0.78896,2533.8,2533.7,3.92601813]
[1748713744248,25.74676,2533.8,2533.7,3.92601813]
[1748713744543,25.74676,2533.8,2533.7,4.71500813]
[1748713744740,24.9578,2533.8,2533.7,4.71500813]
[1748713744941,24.9578,2533.8,2533.7,0.78899]
[1748713745141,25.74676,2533.8,2533.7,0.78899]
[1748713745441,24.9578,2533.8,2533.7,0.78899]
[1748713746046,25.15274139,2533.8,2533.7,0.78899]
[1748713746247,3.40274139,2533.8,2533.7,0.78899]
[1748713746447,24.9598,2533.8,2533.7,0.78899]
[1748713747944,3.2078,2533.8,2533.7,0.78899]
[1748713748148,24.9598,2533.8,2533.7,0.78899]
[1748713749046,3.794,2533.8,2533.7,0.78899]
[1748713749245,21.753,2533.8,2533.7,0.78899]
[1748713749849,21.753,2533.8,2533.7,3.99679]
[1748713750042,21.753,2533.8,2533.7,5.25009]
[1748713750937,21.9503,2533.8,2533.7,5.25009]
[1748713751847,21.9503,2533.8,2533.5,0.6466]
[1748713752046,21.9503,2533.8,2533.4,3.2078]
[1748713752047,0.78905,2533.5,2533.4,3.2078]
[1748713752242,0.7891,2533.4,2533.2,0.78913]
[1748713752448,3.794,2533.3,2533.2,0.78914]
[1748713753846,3.794,2533.3,2533.2,2.14234]
[1748713756252,8.894,2533.3,2532.1,3.2078]
[1748713756445,3.2078,2532.2,2531.6,0.38852231]
[1748713756845,3.2078,2531.7,2531.6,0.38852231]
[1748713757051,25.2618,2531.7,2531.5,7.85203627]
[1748713757654,26.05143,2531.7,2531.5,7.85203627]
[1748713757851,0.78964,2531.6,2531.5,7.85203627]
[1748713758351,22.35,2531.6,2531.5,7.85203627]
[1748713758553,3.2078,2531.7,2531.5,7.85203627]
[1748713758754,18.34,2531.6,2531.5,8.64170627]
[1748713759162,3.2078,2531.7,2531.6,0.78964]
[1748713759354,21.5468,2531.7,2531.1,0.6805]
[1748713759555,3.2078,2531.3,2531.2,0.78977]
[1748713760060,3.2078,2531.7,2531.6,0.78964]
[1748713760461,3.2078,2532.1,2531.6,5.78964]
[1748713760661,21.5468,2532.1,2532.0,0.78952]
[1748713760853,3.2078,2532.1,2532.0,0.78952]
[1748713761162,18.34,2532.2,2532.0,0.78952]
[1748713761461,18.34,2532.2,2531.6,1.2642]
[1748713761660,3.2078,2532.1,2532.0,0.78952]
[1748713763154,0.00591716,2532.3,2532.2,0.78945]
[1748713773379,2.6598,2533.2,2532.2,0.78945]
[1748713773380,5.1949,2533.2,2532.2,8.2078]
[1748713773682,7.2218,2533.5,2533.0,1.97302]
[1748713773873,3.2078,2533.5,2533.1,1.2586]
[1748713774082,0.1973,2533.8,2533.7,0.78899]
[1748713774276,0.1973,2533.8,2533.7,3.99679]
[1748713783293,0.98625,2533.8,2533.7,3.99679]
[1748713783492,0.1973,2533.8,2533.7,3.99679]
[1748713784694,0.1973,2533.8,2533.7,0.78899]
[1748713785894,0.98626,2533.8,2533.7,0.78899]
[1748713787697,0.78902,2533.7,2533.6,0.78901]
[1748713787899,0.78902,2533.6,2533.5,5.90654716]
[1748713789498,0.79480716,2534.0,2533.9,0.59162]
[1748713792299,0.00591716,2534.0,2533.9,0.59162]
[1748713802311,0.00591716,2534.0,2533.9,3.79942]
[1748713813526,0.00591716,2534.0,2533.9,0.59162]
[1748713813927,0.00591716,2534.0,2533.9,1.92472]
[1748713816232,22.7473,2534.6,2533.9,1.3331]
[1748713816433,5.31301,2534.6,2534.5,0.78874]
[1748713816630,4.5243,2534.6,2534.5,0.78874]
[1748713817329,5.63218604,2534.6,2534.5,0.78874]
[1748713817522,4.31568604,2534.6,2534.5,0.78874]
[1748713818536,1.10788604,2534.6,2534.5,0.78874]
[1748713818928,4.6694,2534.7,2534.6,0.78871]
[1748713819130,5.9227,2534.7,2534.6,0.78871]
[1748713819524,0.00591716,2534.8,2534.7,0.78867]
[1748713819930,0.00591716,2534.8,2534.6,2.06508]
[1748713820235,0.00591716,2534.8,2534.7,0.78867]
[1748713820738,0.00591716,2534.8,2534.6,2.06509]
[1748713821436,0.00591716,2534.8,2534.6,1.2764]
[1748713821637,0.00591716,2534.8,2534.6,2.06508]
[1748713822638,0.79456716,2534.8,2534.6,2.06508]
[1748713823235,3.21371716,2534.8,2534.3,3.2078]
[1748713823438,0.7888,2534.3,2534.2,1.341]
[1748713823736,0.7888,2534.3,2534.2,2.12983]
[1748713824336,0.1972,2534.4,2534.3,0.7888]
[1748713824832,0.98597,2534.4,2534.3,0.7888]
[1748713825444,0.1972,2534.4,2534.2,2.5872]
[1748713825745,0.1972,2534.4,2534.3,0.7888]
[1748713826039,0.1972,2534.4,2534.3,2.035]
[1748713826241,0.98597,2534.4,2534.3,2.035]
[1748713826446,0.98597,2534.4,2534.3,1.2462]
[1748713826749,0.98597,2534.4,2534.3,2.035]
[1748713827546,0.98597,2534.4,2534.3,0.7888]
[1748713829441,0.7888,2534.3,2534.2,2.12981]
[1748713830147,0.98598,2534.4,2534.3,0.7888]
[1748713830447,0.7888,2534.3,2534.2,0.78881]
[1748713830746,0.1972,2534.4,2534.3,0.7888]
[1748713831343,0.1972,2534.4,2534.0,0.6444]
[1748713831537,1.9083,2534.3,2534.0,0.6444]
[1748713831745,0.78886,2534.1,2534.0,1.43327]
[1748713833350,0.78886,2534.1,2534.0,0.6444]
[1748713833552,0.78889,2534.0,2533.9,0.6482]
[1748713833754,0.78889,2534.0,2533.9,1.43712]
[1748713833954,0.78888,2534.1,2534.0,0.78888]
[1748713835253,0.78889,2534.0,2533.9,1.43711]
[1748713835442,0.78889,2534.0,2533.9,2.76701]
[1748713835645,0.78888,2534.1,2534.0,0.78888]
[1748713835846,0.78886,2534.1,2534.0,0.78888]
[1748713839554,0.78889,2534.0,2533.9,1.9781]
[1748713839752,0.78889,2534.0,2533.9,2.76701]
[1748713842048,0.78888,2534.1,2534.0,0.78887]
[1748713842255,0.78888,2534.1,2534.0,2.09217]
[1748713842953,0.78888,2534.1,2534.0,1.3033]
[1748713843154,0.78888,2534.1,2534.0,2.09219]
[1748713846863,0.78889,2534.0,2533.9,1.43712]
[1748713848463,0.78889,2534.1,2534.0,0.78888]
[1748713848665,0.78889,2534.1,2534.0,2.10868]
[1748713848861,0.1973,2534.1,2534.0,2.10868]
[1748713854766,0.98616,2534.1,2534.0,2.10868]
[1748713854967,0.1973,2534.1,2534.0,2.10868]
[1748713856568,0.98616,2534.1,2534.0,2.10868]
[1748713859564,2.09409357,2534.1,2534.0,2.10868]
[1748713860873,1.30523357,2534.1,2534.0,2.10868]
[1748713861070,0.1973,2534.1,2534.0,2.10868]
[1748713861270,0.98616,2534.1,2534.0,2.10868]
[1748713861471,1.30548239,2534.1,2534.0,2.10868]
[1748713862361,2.09434239,2534.1,2534.0,2.10868]
[1748713862562,1.30548239,2534.1,2534.0,2.10868]
[1748713863369,2.09434239,2534.1,2534.0,2.10868]
[1748713866674,0.78892,2533.9,2533.8,3.2078]
[1748713866874,0.78897,2533.8,2533.7,0.78898]
[1748713867182,0.78896,2533.8,2533.7,0.78896]
[1748713867670,2.68311,2534.0,2533.9,0.78892]
[1748713867880,0.7889,2534.0,2533.7,1.3035]
[1748713868069,1.10818239,2533.8,2533.7,2.09249]
[1748713869379,1.10818239,2533.9,2533.8,0.78896]
[1748713871780,1.10818239,2533.9,2533.7,2.09246]
[1748713871980,0.78896,2533.8,2533.7,0.78896]
[1748713872476,1.89714239,2533.8,2533.7,0.78896]
[1748713872973,1.10818239,2533.8,2533.7,0.78896]
[1748713873578,1.89713239,2533.8,2533.7,0.78896]
[1748713873779,1.10818239,2533.8,2533.7,0.78896]
[1748713874080,1.89713239,2533.9,2533.8,0.78895]
[1748713874977,0.78896,2533.8,2533.7,0.78896]
[1748713875481,3.18882239,2533.9,2533.8,0.78895]
[1748713876184,0.78899,2533.7,2533.6,2.8175]
[1748713877084,0.78899,2533.7,2533.6,0.6588]
[1748713878872,0.78899,2533.7,2533.6,1.44782]
[1748713879582,0.78899,2533.7,2533.5,3.21371716]
[1748713879583,0.78902,2533.6,2533.5,4.00274716]
[1748713879782,0.78902,2533.6,2532.9,3.2078]
[1748713879783,0.7892,2533.1,2532.9,3.2078]
[1748713880081,0.7892,2533.1,2533.0,0.78919]
[1748713880580,2.8057,2533.1,2533.0,0.78919]
[1748713880792,2.0165,2533.1,2533.0,0.78919]
[1748713882189,21.3238,2533.2,2533.1,0.78917]
[1748713882590,22.11294,2533.2,2533.1,0.78917]
[1748713883293,0.78918,2533.1,2533.0,0.78919]
[1748713883487,0.7892,2533.1,2532.9,2.09511]
[1748713883991,0.7892,2533.0,2532.9,2.09511]
[1748713885196,0.78924,2532.9,2532.8,0.68131716]
[1748713885390,8.52534,2532.9,2532.3,4.4886]
[1748713885585,0.78942,2532.3,2532.2,0.6474]
[1748713886490,0.78945,2532.2,2531.8,18.8069953]
[1748713886698,2.11695,2532.2,2531.9,0.78953]
[1748713887196,2.11695,2532.2,2532.1,0.78948]
[1748713888102,6.3275,2532.2,2531.8,4.4892]
[1748713888398,0.78955,2531.9,2531.8,5.27876]
[1748713888696,4.6595,2532.1,2532.0,0.78952]
[1748713888893,3.87,2532.1,2531.9,0.78952]
[1748713889093,3.87,2532.1,2532.0,0.78952]
[1748713889994,0.78952,2532.0,2531.8,5.27877]
[1748713890203,0.78955,2531.9,2531.8,4.4892]
[1748713890396,0.78955,2531.9,2531.8,1.2814]
[1748713890894,0.78955,2531.9,2531.8,2.07098]
[1748713891295,0.78955,2531.9,2531.8,1.2814]
[1748713892002,3.2078,2532.0,2531.9,0.78955]
[1748713892501,3.2078,2532.0,2531.9,1.46245]
[1748713894600,18.164,2532.2,2532.1,0.78948]
[1748713894793,3.871,2532.3,2532.2,0.78945]
[1748713894998,3.2078,2532.4,2532.3,0.78942]
[1748713895198,21.3718,2532.4,2532.3,0.78942]
[1748713895606,3.2078,2532.4,2532.3,0.78942]
[1748713895898,18.178,2532.7,2532.2,3.2078]
[1748713896101,18.178,2532.7,2530.2,39.792]
[1748713896102,1.97357,2532.3,2531.3,0.6331]
[1748713896410,0.7898,2531.1,2530.5,3.90236165]
[1748713896703,3.9976,2531.1,2530.8,2.5726]
[1748713897093,3.2078,2531.1,2530.8,2.5726]
[1748713897297,3.2078,2531.1,2530.8,3.36247]
[1748713897503,3.2078,2531.1,2530.9,1.3063]
[1748713897699,0.00591716,2531.3,2531.2,0.78977]
[1748713898102,0.00591716,2531.3,2531.1,1.2394]
[1748713898506,0.00591716,2531.3,2531.2,0.78976]
[1748713898697,0.00591716,2531.3,2531.2,2.06528055]
[1748713899403,0.00591716,2531.3,2531.2,1.27552055]
[1748713899602,4.94864716,2531.3,2531.2,0.03612055]
[1748713899803,8.15644716,2531.3,2531.2,0.03612055]
[1748713900104,7.36671716,2531.3,2531.2,0.03612055]
[1748713900310,3.21371716,2531.3,2531.2,0.03612055]
[1748713900511,26.96944716,2531.3,2531.2,0.03612055]
[1748713902406,0.7898,2531.1,2531.0,5.0]
[1748713903108,2.0753,2531.1,2531.0,5.0]
[1748713903705,2.2728,2531.1,2531.0,5.0]
[1748713904911,6.483,2531.1,2529.9,3.2078]
[1748713905109,3.2078,2530.0,2529.4,1.368]
[1748713905313,22.934,2529.9,2529.4,1.368]
[1748713905504,22.934,2529.9,2529.4,2.15832]
[1748713905706,22.937,2529.8,2529.6,0.79025]
[1748713906006,3.21372956,2530.0,2529.4,1.368]
[1748713906205,3.2078,2529.6,2529.4,1.368]
[1748713906409,3.2078,2529.6,2529.5,0.7903]
[1748713906603,26.1398,2529.6,2529.5,0.7903]
[1748713906811,3.2078,2529.6,2529.4,1.368]
[1748713907004,4.154,2529.9,2529.8,0.7902]
[1748713907417,9.56e-06,2530.0,2529.9,0.79017]
[1748713907711,9.56e-06,2530.0,2529.9,2.08767]
[1748713909316,9.56e-06,2530.0,2529.9,2.72927]
[1748713910711,9.56e-06,2530.0,2529.9,7.72927]
[1748713915722,9.56e-06,2530.0,2529.9,11.88427]
[1748713917327,4.155,2530.9,2530.8,0.78989]
[1748713917522,3.2078,2531.2,2531.1,0.7898]
[1748713917723,3.4053,2531.2,2531.1,0.7898]
[1748713919419,0.7898,2531.1,2530.7,2.5612]
[1748713919620,2.0415,2531.1,2530.7,2.5612]
[1748713919924,2.0415,2531.1,2531.0,0.78983]
[1748713920929,3.4053,2531.2,2531.1,0.7898]
[1748713921120,26.2763,2531.2,2531.1,0.7898]
[1748713921624,3.4053,2531.2,2531.1,0.7898]
[1748713921826,3.4053,2531.2,2531.1,1.4747]
[1748713922627,8.4053,2531.2,2530.7,0.6378]
[1748713922828,1.9178,2531.1,2531.0,0.78983]
[1748713923128,0.658,2531.1,2531.0,0.78983]
[1748713923423,1.9178,2531.1,2531.0,0.78983]
[1748713924530,3.4053,2531.2,2531.1,0.7898]
[1748713927524,4.53778218,2531.2,2531.1,0.7898]
[1748713930122,1.32998218,2531.2,2531.1,0.7898]
[1748713930530,1.97449,2531.1,2530.3,5.18286]
[1748713930733,3.99767,2530.9,2530.8,0.78989]
[1748713931232,4.4999,2530.9,2530.8,0.78989]
[1748713931926,1.3443,2531.1,2531.0,0.78983]
[1748713932126,25.5064,2531.1,2530.9,0.78984]
[1748713932327,0.78987,2530.9,2530.8,0.78986]
[1748713932634,0.78984,2531.0,2530.9,0.78985]
[1748713932834,0.78987,2530.9,2530.8,0.78986]
[1748713933132,2.08195,2531.0,2530.9,0.78986]
[1748713933431,0.78987,2530.9,2530.8,0.78987]
[1748713933734,4.4999,2530.9,2530.5,1.97496]
[1748713933934,4.4999,2530.9,2530.8,0.78989]
[1748713934229,1.97473,2530.8,2529.9,3.2078]
[1748713934533,0.79012,2530.1,2530.0,0.79012]
[1748713934735,23.64312,2530.1,2530.0,0.79012]
[1748713935331,24.98431,2530.1,2530.0,0.79014]
[1748713935934,24.1942,2530.1,2529.7,0.00592956]
[1748713936238,24.98432,2530.1,2530.0,0.79014]
[1748713936531,0.79014,2530.0,2529.9,0.79016]
[1748713936737,1.3412,2530.0,2529.9,0.79016]
[1748713936929,2.13134,2530.0,2529.7,0.00592956]
[1748713937129,1.3412,2530.0,2529.7,0.00592956]
[1748713937334,1.3412,2530.0,2529.9,0.79017]
[1748713938631,0.7902,2529.8,2529.7,0.79613956]
[1748713938835,3.2078,2530.0,2529.9,0.79017]
[1748713939135,26.0398,2530.0,2529.9,0.79017]
[1748713939343,3.2078,2530.0,2529.9,0.79017]
[1748713939934,3.2078,2530.0,2529.9,2.10627]
[1748713940434,0.00592956,2530.1,2530.0,0.79014]
[1748713941532,0.00592956,2530.1,2530.0,2.13054]
[1748713941738,0.00592956,2530.1,2530.0,0.79014]
[1748713943832,0.00592956,2530.1,2530.0,2.15844]
[1748713945140,0.20352956,2530.1,2530.0,2.15844]
[1748713948640,0.20352956,2530.1,2530.0,0.79014]
[1748713950744,0.79017,2529.9,2529.7,0.00592956]
[1748713951043,0.79017,2529.9,2529.8,0.79017]
[1748713951344,5.00817,2529.9,2529.8,0.79017]
[1748713951540,6.36087,2529.9,2529.8,0.79017]
[1748713951744,6.34724412,2529.9,2529.8,0.79017]
[1748713952046,6.34724412,2529.9,2529.3,1.97581]
[1748713952047,1.97571,2529.6,2528.2,9.82878627]
[1748713952242,3.2078,2528.6,2528.5,4.69295165]
[1748713952444,22.0628,2528.6,2528.5,3.90236165]
[1748713952644,22.0628,2528.6,2528.5,4.69296165]
[1748713952945,22.0628,2528.6,2528.5,3.90236165]
[1748713953146,3.2078,2528.6,2528.5,3.90236165]
[1748713953446,22.0898,2528.6,2528.5,3.90236165]
[1748713953637,22.88037,2528.6,2528.5,3.90236165]
[1748713953834,22.0898,2528.6,2528.5,3.90236165]
[1748713954038,22.0898,2528.6,2528.4,0.79062]
[1748713954240,22.0968,2528.6,2528.5,0.7906]
[1748713955436,22.0968,2528.6,2528.3,1.9717]
[1748713955437,22.0968,2528.6,2528.3,2.11184]
[1748713955642,22.0968,2528.6,2528.3,1.3212]
[1748713955842,22.0968,2528.6,2527.9,3.8647]
[1748713955843,5.4658,2528.5,2528.1,0.79072]
[1748713956141,3.2078,2528.2,2528.0,2.09145]
[1748713956340,3.2078,2528.2,2528.0,1.3007]
[1748713956845,3.2078,2528.2,2528.1,0.79073]
[1748713959253,3.4055,2528.2,2528.1,0.79073]
[1748713961260,0.79076,2528.0,2527.9,0.6569]
[1748713961446,3.4055,2528.2,2527.9,0.6569]
[1748713961753,0.79075,2528.1,2528.0,1.2592]
[1748713962153,0.79075,2528.1,2528.0,2.04996]
[1748713962550,4.19621,2528.2,2528.1,0.79073]
[1748713962751,0.79073,2528.1,2528.0,2.04994]
[1748713963856,3.4055,2528.2,2528.1,0.79073]
[1748713964054,4.1962,2528.2,2528.1,0.79073]
[1748713964250,3.4055,2528.2,2528.1,0.79073]
[1748713964955,4.1962,2528.2,2528.1,0.79073]
[1748713965154,3.4055,2528.2,2528.1,0.79073]
[1748713965458,4.1962,2528.2,2528.1,0.79073]
[1748713966658,3.4055,2528.2,2528.1,0.79073]
[1748713966954,4.1962,2528.2,2528.1,0.79073]
[1748713967157,3.4055,2528.2,2528.1,0.79073]
[1748713967358,4.1962,2528.2,2528.1,0.79073]
[1748713967659,3.4055,2528.2,2528.1,0.79073]
[1748713967860,4.1962,2528.2,2528.1,0.79073]
[1748713968062,3.4055,2528.2,2528.1,0.79073]
[1748713968960,4.1962,2528.2,2528.1,0.79073]
[1748713969161,3.4055,2528.2,2528.1,0.79073]
[1748713969959,4.1962,2528.2,2528.1,0.79073]
[1748713972063,3.4055,2528.2,2528.1,0.79073]
[1748713972257,0.1977,2528.2,2528.1,0.79073]
[1748713972659,0.1977,2528.2,2528.1,3.99853]
[1748713973167,3.21372956,2528.8,2528.7,0.79054]
[1748713974866,0.00592956,2528.8,2528.7,0.79054]
[1748713976368,0.00592956,2528.8,2528.7,1.46304]
[1748713976569,0.00592956,2528.8,2528.7,4.67084]
[1748713977071,0.00592956,2528.8,2528.7,9.67084]
[1748713977567,0.1977,2528.9,2528.7,8.8803]
[1748713977774,3.2078,2529.4,2529.3,0.79035]
[1748713980163,0.1976,2529.5,2529.4,0.79032]
[1748713981069,0.1976,2529.5,2529.4,2.11412]
[1748713982368,3.2078,2529.8,2529.4,6.3238]
[1748713982566,3.2078,2529.8,2529.7,0.79023]
[1748713982963,0.79023,2529.7,2529.6,1.2802]
[1748713983165,0.79035,2529.4,2529.2,0.79036]
[1748713983370,3.2078,2529.3,2529.2,0.79038]
[1748713983572,0.79038,2529.2,2529.1,0.00592956]
[1748713983772,1.2605,2529.2,2529.1,0.79634956]
[1748713983967,2.05088,2529.2,2529.1,0.00592956]
[1748713984776,3.2078,2529.3,2529.2,0.79038]
[1748713985069,3.2078,2529.3,2529.2,2.07058]
[1748713985263,3.2078,2529.3,2529.2,1.2802]
[1748713985465,3.2078,2529.3,2529.1,0.00592956]
[1748713985672,3.99817,2529.3,2529.1,0.00592956]
[1748713985859,3.99815,2529.3,2529.2,0.79038]
[1748713986065,0.79038,2529.2,2529.1,0.79631956]
[1748713987876,3.99818,2529.3,2529.2,0.79038]